fUST/lending_fUST_20240626
["ID","MTS","AMOUNT","RATE_DAILY","PERIOD"]
[330406289,1719351043960,-500.0,0.00016712,2]
[330406291,1719351043969,-151.0,0.00016712,2]
[330406293,1719351043978,-500.0,0.00016712,2]
[330406295,1719351043987,-500.0,0.00016712,2]
[330406297,1719351043997,-1625.59,0.00016712,2]
[330406298,1719351044006,-500.0,0.00016712,2]
[330406300,1719351044016,-500.0,0.00016712,2]
[330406302,1719351044026,-500.0,0.00016712,2]
[330406304,1719351044035,-713.05,0.00016712,2]
[330406306,1719351044044,-500.0,0.00016712,2]
[330406309,1719351044053,-500.0,0.00016712,2]
[330406312,1719351044062,-500.0,0.00016712,2]
[330406314,1719351044071,-500.0,0.00016712,2]
[330406316,1719351044080,-500.0,0.00016712,2]
[330406318,1719351044089,-518.09414196,0.00016712,2]
[330406320,1719351044099,-500.0,0.00016712,2]
[330406322,1719351044108,-922.58,0.00016712,2]
[330406323,1719351044118,-500.0,0.00016712,2]
[330406326,1719351044128,-504.3,0.00016712,2]
[330406327,1719351044137,-500.0,0.00016712,2]
[330406329,1719351044148,-500.0,0.00016712,2]
[330406331,1719351044158,-756.01,0.00016712,2]
[330406333,1719351044167,-500.0,0.00016712,2]
[330406335,1719351044176,-500.0,0.00016712,2]
[330406337,1719351044186,-500.0,0.00016712,2]
[330406339,1719351044195,-500.0,0.00016712,2]
[330406341,1719351044204,-500.0,0.00016712,2]
[330406343,1719351044214,-632.53,0.00016712,2]
[330406345,1719351044224,-500.0,0.00016712,2]
[330406347,1719351044234,-927.04,0.00016712,2]
[330406349,1719351044243,-917.24,0.00016712,2]
[330406350,1719351044253,-500.0,0.00016712,2]
[330406352,1719351044263,-151.0,0.00016712,2]
[330406354,1719351044273,-151.0,0.00016712,2]
[330406356,1719351044282,-500.0,0.00016712,2]
[330406358,1719351044291,-500.0,0.00016712,2]
[330406360,1719351044301,-500.0,0.00016712,2]
[330406362,1719351044311,-519.47358587,0.00016712,2]
[330406364,1719351044320,-1585.24,0.00016712,2]
[330406366,1719351044330,-500.0,0.00016712,2]
[330406368,1719351044339,-151.0,0.00016712,2]
[330406370,1719351044348,-151.0,0.00016712,2]
[330406372,1719351044358,-1698.35,0.00016712,2]
[330406374,1719351044367,-1278.51,0.00016712,2]
[330406376,1719351044376,-500.0,0.00016712,2]
[330406377,1719351044385,-500.0,0.00016712,2]
[330406379,1719351044395,-735.19,0.00016712,2]
[330406381,1719351044405,-500.0,0.00016712,2]
[330406383,1719351044414,-500.0,0.00016712,2]
[330406385,1719351044424,-25770.93,0.00016712,2]
[330406387,1719351044437,-500.0,0.00016712,2]
[330406389,1719351044450,-151.0,0.00016712,2]
[330406391,1719351044460,-19402.46,0.00016712,2]
[330406393,1719351044470,-500.0,0.00016712,2]
[330406395,1719351044481,-2963.43,0.00016712,2]
[330406397,1719351044492,-500.0,0.00016712,2]
[330406399,1719351044502,-500.0,0.00016712,2]
[330406401,1719351044511,-500.0,0.00016712,2]
[330406403,1719351044524,-500.0,0.00016712,2]
[330406405,1719351044535,-500.0,0.00016712,2]
[330406407,1719351044545,-500.0,0.00016712,2]
[330406409,1719351044554,-996.2,0.00016712,2]
[330406411,1719351044563,-10753.24,0.00016712,2]
[330406412,1719351044572,-5208.95,0.00016712,2]
[330406414,1719351044582,-500.0,0.00016712,2]
[330406416,1719351044591,-4962.55,0.00016712,2]
[330406418,1719351044600,-500.0,0.00016712,2]
[330406420,1719351044609,-500.0,0.00016712,2]
[330406422,1719351044619,-529.54,0.00016712,2]
[330406424,1719351044629,-500.0,0.00016712,2]
[330406426,1719351044637,-4242.64,0.00016712,2]
[330406427,1719351044646,-500.0,0.00016712,2]
[330406429,1719351044656,-500.0,0.00016712,2]
[330406431,1719351044665,-8203.49,0.00016712,2]
[330406433,1719351044675,-500.0,0.00016712,2]
[330406435,1719351044685,-500.0,0.00016712,2]
[330406437,1719351044694,-533.56,0.00016712,2]
[330406439,1719351044704,-3260.49,0.00016712,2]
[330406441,1719351044713,-500.0,0.00016712,2]
[330406443,1719351044723,-1571.52,0.00016712,2]
[330406445,1719351044733,-500.0,0.00016712,2]
[330406447,1719351044742,-500.0,0.00016712,2]
[330406449,1719351044752,-500.0,0.00016712,2]
[330406451,1719351044761,-500.0,0.00016712,2]
[330406453,1719351044770,-500.0,0.00016712,2]
[330406454,1719351044780,-500.0,0.00016712,2]
[330406456,1719351044789,-1224.26,0.00016712,2]
[330406458,1719351044798,-980.52,0.00016712,2]
[330406460,1719351044808,-500.0,0.00016712,2]
[330406462,1719351044817,-798.68,0.00016712,2]
[330406464,1719351044826,-500.0,0.00016712,2]
[330406466,1719351044835,-500.0,0.00016712,2]
[330406468,1719351044844,-500.0,0.00016712,2]
[330406470,1719351044853,-500.0,0.00016712,2]
[330406472,1719351044862,-610.9,0.00016712,2]
[330406473,1719351044871,-1121.59,0.00016712,2]
[330406475,1719351044880,-500.0,0.00016712,2]
[330406477,1719351044889,-460.02283617,0.00016712,2]
[330406479,1719351044899,-394.95898939,0.00016712,2]
[330406481,1719351044908,-2309.95,0.00016712,2]
[330406483,1719351044917,-1719.24,0.00016712,2]
[330406485,1719351044927,-500.0,0.00016712,2]
[330406487,1719351044936,-1121.96,0.00016712,2]
[330406489,1719351044945,-500.0,0.00016712,2]
[330406491,1719351044954,-500.0,0.00016712,2]
[330406492,1719351044963,-151.0,0.00016712,2]
[330406494,1719351044972,-500.0,0.00016712,2]
[330406496,1719351044981,-151.0,0.00016712,2]
[330406498,1719351044990,-500.0,0.00016712,2]
[330406500,1719351044999,-500.0,0.00016712,2]
[330406502,1719351045008,-8292.76,0.00016712,2]
[330406504,1719351045017,-500.0,0.00016712,2]
[330406506,1719351045027,-1065.18,0.00016712,2]
[330406508,1719351045037,-500.0,0.00016712,2]
[330406510,1719351045045,-151.0,0.00016712,2]
[330406512,1719351045055,-151.0,0.00016712,2]
[330406514,1719351045064,-921.93,0.00016712,2]
[330406515,1719351045073,-151.0,0.00016712,2]
[330406517,1719351045083,-151.0,0.00016712,2]
[330406519,1719351045092,-2504.1,0.00016712,2]
[330406521,1719351045101,-1094.21,0.00016712,2]
[330406523,1719351045111,-3568.42,0.00016712,2]
[330406525,1719351045120,-987.7,0.00016712,2]
[330406527,1719351045129,-500.0,0.00016712,2]
[330406529,1719351045139,-500.0,0.00016712,2]
[330406531,1719351045148,-1564.69,0.00016712,2]
[330406532,1719351045162,-4117.59,0.00016712,2]
[330406534,1719351045171,-151.0,0.00016712,2]
[330406536,1719351045181,-151.0,0.00016712,2]
[330406538,1719351045190,-500.0,0.00016712,2]
[330406540,1719351045202,-151.0,0.00016712,2]
[330406542,1719351045211,-151.0,0.00016712,2]
[330406544,1719351045220,-500.0,0.00016712,2]
[330406546,1719351045229,-500.0,0.00016712,2]
[330406548,1719351045240,-2601.42,0.00016712,2]
[330406549,1719351045249,-500.0,0.00016712,2]
[330406551,1719351045259,-500.0,0.00016712,2]
[330406553,1719351045268,-500.0,0.00016712,2]
[330406555,1719351045277,-500.0,0.00016712,2]
[330406556,1719351045287,-500.0,0.00016712,2]
[330406558,1719351045296,-500.0,0.00016712,2]
[330406560,1719351045305,-500.0,0.00016712,2]
[330406562,1719351045314,-500.0,0.00016712,2]
[330406563,1719351045324,-500.0,0.00016712,2]
[330406565,1719351045333,-500.0,0.00016712,2]
[330406567,1719351045343,-500.0,0.00016712,2]
[330406569,1719351045353,-500.0,0.00016712,2]
[330406571,1719351045362,-500.0,0.00016712,2]
[330406573,1719351045371,-500.0,0.00016712,2]
[330406575,1719351045381,-6879.20011179,0.00016979,2]
[330406576,1719351045390,-236.65237,0.00016979,2]
[330406578,1719351045401,-500.0,0.00016986,2]
[330406579,1719351045413,-500.0,0.00016986,2]
[330406581,1719351045422,-500.0,0.00016986,2]
[330406583,1719351045431,-500.0,0.00016986,2]
[330406584,1719351045446,-486.60347692,0.00016986,2]
[330406586,1719351045455,-500.0,0.00016986,2]
[330406588,1719351045465,-500.0,0.00016986,2]
[330406589,1719351045474,-769.24,0.00016986,2]
[330406591,1719351045485,-552.01,0.00016986,2]
[330406592,1719351045494,-788.61,0.00016986,2]
[330406593,1719351045503,-561.17,0.00016986,2]
[330406595,1719351045512,-500.0,0.00016986,2]
[330406597,1719351045521,-500.0,0.00016986,2]
[330406598,1719351045531,-500.0,0.00016986,2]
[330406600,1719351045541,-500.0,0.00016986,2]
[330406602,1719351045550,-500.0,0.00016986,2]
[330406603,1719351045560,-694.83,0.00016986,2]
[330406604,1719351045569,-500.0,0.00016986,2]
[330406605,1719351045578,-570.95,0.00016986,2]
[330406606,1719351045587,-500.0,0.00016986,2]
[330406607,1719351045596,-500.0,0.00016986,2]
[330406608,1719351045605,-250.0,0.00016986,2]
[330406609,1719351045614,-588.97,0.00016986,2]
[330406610,1719351045623,-500.0,0.00016986,2]
[330406611,1719351045632,-226.24930146,0.00016986,2]
[330406612,1719351045641,-500.0,0.00016986,2]
[330406613,1719351045654,-500.0,0.00016986,2]
[330406614,1719351045663,-500.0,0.00016986,2]
[330406615,1719351045672,-500.0,0.00016986,2]
[330406616,1719351045681,-784.79,0.00016986,2]
[330406617,1719351045690,-1222.97,0.00016986,2]
[330406618,1719351045700,-586.72,0.00016986,2]
[330406619,1719351045709,-500.0,0.00016986,2]
[330406620,1719351045718,-354.79837136,0.00016986,2]
[330406621,1719351045727,-572.85,0.00016986,2]
[330406622,1719351045736,-500.0,0.00016986,2]
[330406623,1719351045745,-500.0,0.00016986,2]
[330406624,1719351045755,-500.0,0.00016986,2]
[330406625,1719351045764,-500.0,0.00016986,2]
[330406626,1719351045773,-1007.14,0.00016986,2]
[330406627,1719351045782,-500.0,0.00016986,2]
[330406628,1719351045791,-500.0,0.00016986,2]
[330406629,1719351045801,-500.0,0.00016986,2]
[330406630,1719351045810,-500.0,0.00016986,2]
[330406631,1719351045819,-499.99710827,0.00016986,2]
[330406632,1719351045828,-1283.7,0.00016986,2]
[330406633,1719351045837,-990.95,0.00016986,2]
[330406634,1719351045846,-181.55685818,0.00016986,2]
[330406635,1719351045921,-6220.69,0.00016438,2]
[330406636,1719351045930,-366.57314182,0.00016986,2]
[330406637,1719351045938,-1376.03,0.00016986,2]
[330406638,1719351045947,-500.0,0.00016986,2]
[330406639,1719351045956,-500.0,0.00016986,2]
[330406640,1719351045965,-500.0,0.00016986,2]
[330406641,1719351045974,-151.0,0.00016986,2]
[330406642,1719351045983,-815.46,0.00016986,2]
[330406643,1719351045992,-500.0,0.00016986,2]
[330406644,1719351046001,-500.0,0.00016986,2]
[330406645,1719351046010,-298.16613996,0.00016986,2]
[330406646,1719351046020,-500.0,0.00016986,2]
[330406647,1719351046029,-500.0,0.00016986,2]
[330406648,1719351046038,-500.0,0.00016986,2]
[330406649,1719351046048,-500.0,0.00016986,2]
[330406650,1719351046059,-500.0,0.00016986,2]
[330406651,1719351046069,-1110.09,0.00016986,2]
[330406652,1719351046078,-500.0,0.00016986,2]
[330406653,1719351046087,-500.0,0.00016986,2]
[330406654,1719351046097,-500.0,0.00016986,2]
[330406655,1719351046106,-646.06,0.00016986,2]
[330406657,1719351046116,-776.14,0.00016986,2]
[330406658,1719351046125,-789.99,0.00016986,2]
[330406659,1719351046134,-245.56,0.00016986,2]
[330406660,1719351046144,-2558.41,0.00016986,2]
[330406661,1719351046153,-500.0,0.00016986,2]
[330406662,1719351046163,-500.0,0.00016986,2]
[330406663,1719351046172,-151.0,0.00016986,2]
[330406664,1719351046182,-151.0,0.00016986,2]
[330406665,1719351046191,-151.0,0.00016986,2]
[330406666,1719351046200,-500.0,0.00016986,2]
[330406668,1719351046210,-500.0,0.00016986,2]
[330406669,1719351046219,-1625.59,0.00016986,2]
[330406670,1719351046228,-500.0,0.00016986,2]
[330406671,1719351046238,-500.0,0.00016986,2]
[330406672,1719351046247,-713.05,0.00016986,2]
[330406673,1719351046387,-500.0,0.00016986,2]
[330406674,1719351046397,-500.0,0.00016986,2]
[330406676,1719351046407,-500.0,0.00016986,2]
[330406678,1719351046417,-500.0,0.00016986,2]
[330406679,1719351046426,-500.0,0.00016986,2]
[330406680,1719351046438,-922.58,0.00016986,2]
[330406681,1719351046449,-500.0,0.00016986,2]
[330406682,1719351046459,-500.0,0.00016986,2]
[330406683,1719351046468,-500.0,0.00016986,2]
[330406685,1719351046478,-756.01,0.00016986,2]
[330406687,1719351046487,-500.0,0.00016986,2]
[330406689,1719351046497,-500.0,0.00016986,2]
[330406691,1719351046506,-500.0,0.00016986,2]
[330406693,1719351046516,-500.0,0.00016986,2]
[330406694,1719351046526,-632.53,0.00016986,2]
[330406695,1719351046535,-500.0,0.00016986,2]
[330406696,1719351046544,-25.18590178,0.00016986,2]
[330406697,1719351046753,-4126.48756248,0.00016712,2]
[330406698,1719351046765,-2094.20243752,0.00016712,2]
[330406699,1719351046775,-901.85409822,0.00016986,2]
[330406700,1719351046784,-917.24,0.00016986,2]
[330406701,1719351046794,-500.0,0.00016986,2]
[330406702,1719351046804,-151.0,0.00016986,2]
[330406703,1719351046814,-213.864452,0.00016986,2]
[330406704,1719351046823,-500.0,0.00016986,2]
[330406705,1719351046834,-584.55,0.00016986,2]
[330406706,1719351046843,-1585.24,0.00016986,2]
[330406707,1719351046852,-500.0,0.00016986,2]
[330406708,1719351046862,-151.0,0.00016986,2]
[330406709,1719351046872,-151.0,0.00016986,2]
[330406710,1719351046881,-1698.35,0.00016986,2]
[330406711,1719351046890,-1278.51,0.00016986,2]
[330406712,1719351046899,-500.0,0.00016986,2]
[330406713,1719351046908,-500.0,0.00016986,2]
[330406714,1719351046917,-735.19,0.00016986,2]
[330406715,1719351046926,-615.35,0.00016986,2]
[330406716,1719351046935,-11567.81392393,0.00016986,2]
[330406717,1719351047000,-3819.59895085,0.00016986,2]
[330406718,1719351047416,-10383.51712522,0.00016986,2]
[330406719,1719351047425,-500.0,0.00016986,2]
[330406720,1719351047437,-3150.75548734,0.00016986,2]
[330406721,1719351047450,-279.75,0.00016986,2]
[330406783,1719351441116,14790.24103725,0.0001,2]
[330406784,1719351479781,770.09009109,0.00012121,2]
[330406785,1719351485904,524.47181177,0.00012121,2]
[330406786,1719351494948,723.85909681,0.00012121,2]
[330406787,1719351498348,3924.1764354,0.00012121,2]
[330406788,1719351505718,6264.62248261,0.00012121,2]
[330406789,1719351507445,9601.79213166,0.00012121,2]
[330406790,1719351511204,990.65106447,0.00012121,2]
[330406791,1719351513003,1313.011853,0.00012121,2]
[330406792,1719351513566,6972.7816651,0.00012121,2]
[330406793,1719351516410,4690.93421759,0.0001,2]
[330406794,1719351584048,516.72213415,0.00012121,2]
[330406795,1719351588904,4690.93421759,0.00012121,2]
[330406796,1719351603570,207.68904958,0.00012121,2]
[330406797,1719351696232,12247.492443,0.00013734,2]
[330406798,1719351730309,261.55719,0.00013699,2]
[330406801,1719351777425,4690.93421759,0.00013734,2]
[330406803,1719351866430,1611.50059971,0.00013734,2]
[330406804,1719351909605,42185.65991976,0.00013999,2]
[330406805,1719351947891,933.08575257,0.00013999,2]
[330406806,1719352032084,3923.41118306,0.00013999,2]
[330406807,1719352066553,155.22844114,0.00013999,2]
[330406808,1719352089703,1008.308461,0.0001354,2]
[330406809,1719352115726,250.0,0.0001348,2]
[330406815,1719352209655,596.09454497,0.00013987,2]
[330406816,1719352221378,951.5803795,0.00013859,2]
[330406857,1719352231846,-636.9375,0.00014087,2]
[330406859,1719352231860,-17.92929893,0.00014087,2]
[330406861,1719352231869,-8824.53616521,0.00014088,2]
[330406863,1719352231879,-481.97187826,0.00014088,2]
[330406865,1719352231889,-16.67585669,0.00014127,2]
[330406867,1719352231902,-283.32414331,0.00014127,2]
[330406869,1719352231911,-652.34892492,0.00014131,2]
[330406872,1719352231924,-71.36477199,0.00014131,2]
[330406873,1719352231933,-186.81527587,0.00014999,2]
[330406875,1719352231944,-480.80017026,0.00014999,2]
[330406877,1719352232043,-1447.39941067,0.00014999,2]
[330406878,1719352232052,-1468.66678233,0.00015,2]
[330406890,1719352238882,-24590.15257828,0.00015,2]
[330406891,1719352238895,-675.36446544,0.00015178,2]
[330406892,1719352238906,-1883.1538868,0.0001544,2]
[330406893,1719352238917,-1568.73091691,0.00015442,2]
[330406894,1719352238929,-420.0,0.0001554,2]
[330406895,1719352238941,-1883.15388676,0.00015665,2]
[330406896,1719352238953,-42185.65991976,0.00015704,2]
[330406897,1719352238963,-565.83326215,0.00015705,2]
[330406898,1719352238975,-817.36545723,0.00015705,2]
[330406899,1719352238986,-1883.15388676,0.00015889,2]
[330406900,1719352238998,-620.93726232,0.00016113,2]
[330406901,1719352239009,-1883.15388676,0.00016114,2]
[330406902,1719352239020,-17229.55965979,0.00016222,2]
[330406903,1719352239031,-266.52646974,0.00016296,2]
[330406904,1719352239043,-155.28354517,0.00016305,2]
[330406905,1719352239054,-597.61557581,0.00016305,2]
[330406906,1719352239065,-842.37295431,0.00016306,2]
[330406907,1719352239077,-154.83742071,0.00016306,2]
[330406908,1719352239089,-154.83742071,0.00016307,2]
[330406909,1719352239101,-154.83742071,0.00016308,2]
[330406910,1719352239112,-175.97073239,0.0001631,2]
[330406911,1719352239124,-154.83742071,0.00016311,2]
[330406912,1719352239136,-154.83742071,0.00016311,2]
[330406913,1719352239149,-154.83742071,0.00016312,2]
[330406914,1719352239161,-401.69132048,0.00016313,2]
[330406915,1719352239174,-301.66699658,0.00016313,2]
[330406916,1719352239186,-1883.15388676,0.00016338,2]
[330406917,1719352239198,-500.0,0.00016438,2]
[330406918,1719352239209,-500.0,0.00016438,2]
[330406919,1719352239221,-500.0,0.00016438,2]
[330406920,1719352239232,-500.0,0.00016438,2]
[330406921,1719352239244,-789.93,0.00016438,2]
[330406922,1719352239256,-500.0,0.00016438,2]
[330406923,1719352239269,-500.0,0.00016438,2]
[330406924,1719352239281,-500.0,0.00016438,2]
[330406925,1719352239293,-500.0,0.00016438,2]
[330406926,1719352239305,-500.0,0.00016438,2]
[330406927,1719352239316,-710.53,0.00016438,2]
[330406928,1719352239328,-500.0,0.00016438,2]
[330406929,1719352239340,-500.0,0.00016438,2]
[330406930,1719352239352,-500.0,0.00016438,2]
[330406931,1719352239364,-500.0,0.00016438,2]
[330406932,1719352239375,-500.0,0.00016438,2]
[330406933,1719352239387,-500.0,0.00016438,2]
[330406934,1719352239400,-500.0,0.00016438,2]
[330406935,1719352239411,-500.0,0.00016438,2]
[330406936,1719352239423,-500.0,0.00016438,2]
[330406937,1719352239435,-500.0,0.00016438,2]
[330406939,1719352239447,-547.54,0.00016438,2]
[330406940,1719352239459,-500.0,0.00016438,2]
[330406941,1719352239471,-500.0,0.00016438,2]
[330406942,1719352239483,-500.0,0.00016438,2]
[330406943,1719352239496,-923.21,0.00016438,2]
[330406944,1719352239508,-500.0,0.00016438,2]
[330406945,1719352239519,-500.0,0.00016438,2]
[330406946,1719352239531,-500.0,0.00016438,2]
[330406947,1719352239542,-500.0,0.00016438,2]
[330406948,1719352239556,-500.0,0.00016438,2]
[330406949,1719352239568,-500.0,0.00016438,2]
[330406950,1719352239581,-500.0,0.00016438,2]
[330406951,1719352239593,-500.0,0.00016438,2]
[330406952,1719352239606,-533.21,0.00016438,2]
[330406953,1719352239618,-500.0,0.00016438,2]
[330406954,1719352239631,-500.0,0.00016438,2]
[330406956,1719352239643,-1176.72,0.00016438,2]
[330406958,1719352239655,-500.0,0.00016438,2]
[330406960,1719352239666,-500.0,0.00016438,2]
[330406962,1719352239677,-500.0,0.00016438,2]
[330406964,1719352239688,-500.0,0.00016438,2]
[330406970,1719352239886,-500.0,0.00016438,2]
[330406973,1719352239907,-949.66,0.00016438,2]
[330406975,1719352239917,-500.0,0.00016438,2]
[330406977,1719352239928,-510.02,0.00016438,2]
[330406979,1719352239937,-528.31,0.00016438,2]
[330406980,1719352239947,-832.07,0.00016438,2]
[330406982,1719352239956,-500.0,0.00016438,2]
[330406984,1719352239965,-500.0,0.00016438,2]
[330406986,1719352239974,-500.0,0.00016438,2]
[330406988,1719352239984,-1329.02,0.00016438,2]
[330406990,1719352239994,-515.6730036,0.00016438,2]
[330406992,1719352240003,-500.0,0.00016438,2]
[330406994,1719352240013,-500.0,0.00016438,2]
[330406996,1719352240023,-500.0,0.00016438,2]
[330406997,1719352240032,-500.0,0.00016438,2]
[330406999,1719352240042,-11273.72,0.00016438,2]
[330407001,1719352240051,-500.0,0.00016438,2]
[330407003,1719352240061,-500.0,0.00016438,2]
[330407005,1719352240071,-500.0,0.00016438,2]
[330407007,1719352240080,-1154.45,0.00016438,2]
[330407009,1719352240090,-500.0,0.00016438,2]
[330407011,1719352240100,-4146.95,0.00016438,2]
[330407013,1719352240110,-1023.26,0.00016438,2]
[330407015,1719352240120,-500.0,0.00016438,2]
[330407017,1719352240129,-500.0,0.00016438,2]
[330407019,1719352240138,-500.0,0.00016438,2]
[330407020,1719352240148,-500.0,0.00016438,2]
[330407022,1719352240157,-500.0,0.00016438,2]
[330407024,1719352240167,-597.10015087,0.00016438,2]
[330407026,1719352240177,-370.93717894,0.00016438,2]
[330407028,1719352240187,-500.0,0.00016438,2]
[330407030,1719352240197,-500.0,0.00016438,2]
[330407032,1719352240207,-500.0,0.00016438,2]
[330407034,1719352240216,-500.0,0.00016438,2]
[330407036,1719352240225,-500.0,0.00016438,2]
[330407038,1719352240235,-500.0,0.00016438,2]
[330407040,1719352240245,-2514.12,0.00016438,2]
[330407042,1719352240255,-500.0,0.00016438,2]
[330407044,1719352240265,-500.0,0.00016438,2]
[330407045,1719352240275,-500.0,0.00016438,2]
[330407047,1719352240284,-500.0,0.00016438,2]
[330407049,1719352240294,-512.20271342,0.00016438,2]
[330407051,1719352240304,-501.77,0.00016438,2]
[330407053,1719352240314,-500.0,0.00016438,2]
[330407055,1719352240324,-500.0,0.00016438,2]
[330407057,1719352240334,-500.0,0.00016438,2]
[330407059,1719352240344,-500.0,0.00016438,2]
[330407062,1719352240353,-500.0,0.00016438,2]
[330407064,1719352240363,-518.09414196,0.00016438,2]
[330407067,1719352240373,-500.0,0.00016438,2]
[330407069,1719352240383,-500.0,0.00016438,2]
[330407071,1719352240392,-1564.69,0.00016438,2]
[330407073,1719352240402,-500.0,0.00016438,2]
[330407075,1719352240411,-500.0,0.00016438,2]
[330407077,1719352240420,-500.0,0.00016438,2]
[330407079,1719352240430,-641.33,0.00016438,2]
[330407081,1719352240440,-500.0,0.00016438,2]
[330407082,1719352240451,-500.39665714,0.00016438,2]
[330407084,1719352240461,-500.0,0.00016438,2]
[330407086,1719352240471,-500.0,0.00016438,2]
[330407088,1719352240480,-500.0,0.00016438,2]
[330407090,1719352240490,-744.99,0.00016438,2]
[330407092,1719352240500,-500.0,0.00016438,2]
[330407094,1719352240511,-500.0,0.00016438,2]
[330407096,1719352240521,-500.0,0.00016438,2]
[330407098,1719352240531,-500.0,0.00016438,2]
[330407100,1719352240541,-5702.3,0.00016438,2]
[330407102,1719352240552,-500.0,0.00016438,2]
[330407104,1719352240562,-500.0,0.00016438,2]
[330407106,1719352240572,-755.75,0.00016438,2]
[330407108,1719352240583,-500.0,0.00016438,2]
[330407110,1719352240593,-500.0,0.00016438,2]
[330407112,1719352240603,-500.0,0.00016438,2]
[330407114,1719352240613,-1541.52,0.00016438,2]
[330407116,1719352240623,-1534.14,0.00016438,2]
[330407118,1719352240632,-776.32,0.00016438,2]
[330407120,1719352240642,-714.34,0.00016438,2]
[330407122,1719352240652,-500.0,0.00016438,2]
[330407124,1719352240664,-500.0,0.00016438,2]
[330407126,1719352240674,-500.0,0.00016438,2]
[330407128,1719352240685,-1648.25,0.00016438,2]
[330407130,1719352240694,-500.0,0.00016438,2]
[330407132,1719352240703,-500.0,0.00016438,2]
[330407134,1719352240713,-500.0,0.00016438,2]
[330407136,1719352240722,-665.88,0.00016438,2]
[330407138,1719352240731,-500.0,0.00016438,2]
[330407140,1719352240740,-500.0,0.00016438,2]
[330407142,1719352240750,-500.0,0.00016438,2]
[330407144,1719352240759,-500.0,0.00016438,2]
[330407146,1719352240768,-500.0,0.00016438,2]
[330407148,1719352240778,-500.0,0.00016438,2]
[330407150,1719352240788,-409.65753112,0.00016438,2]
[330407152,1719352240797,-519.47358587,0.00016438,2]
[330407154,1719352240806,-500.0,0.00016438,2]
[330407156,1719352240816,-500.0,0.00016438,2]
[330407158,1719352240829,-500.0,0.00016438,2]
[330407160,1719352240839,-560.77,0.00016438,2]
[330407162,1719352240848,-500.0,0.00016438,2]
[330407164,1719352240859,-500.0,0.00016438,2]
[330407166,1719352240868,-1171.97,0.00016438,2]
[330407168,1719352240878,-500.0,0.00016438,2]
[330407170,1719352240888,-739.28,0.00016438,2]
[330407172,1719352240899,-547.37,0.00016438,2]
[330407174,1719352240909,-2967.29,0.00016438,2]
[330407176,1719352240918,-500.0,0.00016438,2]
[330407178,1719352240928,-500.0,0.00016438,2]
[330407180,1719352240937,-500.0,0.00016438,2]
[330407182,1719352240947,-500.0,0.00016438,2]
[330407184,1719352240957,-461.36,0.00016438,2]
[330407186,1719352240966,-250.0,0.00016438,2]
[330407188,1719352240976,-4962.55,0.00016438,2]
[330407190,1719352240985,-297.23291265,0.00016438,2]
[330407192,1719352240994,-605.57,0.00016438,2]
[330407194,1719352241004,-500.0,0.00016438,2]
[330407196,1719352241014,-500.0,0.00016438,2]
[330407198,1719352241023,-500.0,0.00016438,2]